Cogmind - Beta 14 @@@ ROGUE MODE // 2024.09.15 @ 21:46:27 Player: Dull Result: Destroyed by as-63825 with Assembled Blade Performance ------------- Evolutions (0) 0 Regions Visited (2) 400 Robots Destroyed (30) 150 Value Destroyed (612) 612 Prototype IDs (3) 60 Alien Tech Used (0) 0 Bonus (0) 0 TOTAL SCORE: 1222 Bonus ------- None Cogmind --------- Core Integrity 0/250 Matter 231/300 Energy 100/100 System Corruption 3% Temperature Cool (94) Movement Core (700) Ox13 Location -10/Mines Parts ------- > --- POWER (1) -------- (None) > --- PROPULSION (2) --- (None) > --- UTILITY (2) ------ High-capacity Storage Unit > --- WEAPON (2) ------- Light Assault Rifle > --- INVENTORY (20) --- Ion Engine Ion Engine Light Ion Engine Light Ion Engine Light Treads Compact Wheel Compact Wheel Heat Sink Improved Heat Sink Large Storage Unit High-capacity Matter Pod (200) Improved Terrain Scanner Tractor Beam Small Laser Small Laser Assault Rifle Light Assault Rifle Hammer Peak State ------------ > --- POWER ------------ Ion Engine > --- PROPULSION ------- Light Treads Light Treads > --- UTILITY ---------- Improved Heat Sink High-capacity Storage Unit > --- WEAPON ----------- Particle Gun Light Cannon > --- INVENTORY -------- Ion Engine Ion Engine Light Ion Engine Light Treads Compact Wheel Compact Wheel Heat Sink Heat Sink Heat Sink Small Storage Unit Large Storage Unit Improved Terrain Scanner Medium Laser Small Laser Small Laser Assault Rifle Assault Rifle Assault Rifle Light Assault Rifle [Rating: 12] Favorites ----------- Power Light Ion Engine Engine Light Ion Engine Propulsion Light Treads Treads Light Treads Leg Aluminum Leg Utility High-capacity Storage Unit Device Improved Heat Sink Storage High-capacity Storage Unit Weapon Particle Gun Energy Gun Particle Gun Ballistic Gun Assault Rifle Ballistic Cannon Light Cannon Build | -11 -10 -10 ------- Run | Yrd Mat Min Slots Evolved . | . . . Power . | . . . Propulsion . | . . . Utility . | . . . Weapon . | . . . Parts Attached 23 | 4 13 6 Power 2 | . 1 1 Engine 2 | . 1 1 Core . | . . . Reactor . | . . . Propulsion 4 | 2 1 1 Treads 4 | 2 1 1 Leg . | . . . Wheel . | . . . Hover . | . . . Flight . | . . . Utility 8 | 1 6 1 Device 5 | 1 3 1 Storage 3 | . 3 . Processor . | . . . Hackware . | . . . Protection . | . . . Artifact . | . . . Weapon 9 | 1 5 3 Energy Gun 4 | . 3 1 Energy Cannon . | . . . Ballistic Gun 4 | 1 1 2 Ballistic Cannon 1 | . 1 . Launcher . | . . . Special Weapon . | . . . Impact Weapon . | . . . Slashing Weapon . | . . . Piercing Weapon . | . . . Special Melee Weapon . | . . . Unidentified Prototypes . | . . . Parts Lost 9 | . . 9 Power 1 | . . 1 Propulsion 3 | . . 3 Utility 1 | . . 1 Weapon 4 | . . 4 Highest Loss Streak 7 | . . 7 To Critical Strikes . | . . . Average Slot Usage (%) 99 | . 99 99 Engine 14 | . 14 14 Treads 27 | . 28 27 Device 13 | . 14 13 Storage 14 | . 14 14 Energy Gun 13 | . 13 14 Ballistic Gun 5 | . 5 6 Ballistic Cannon 8 | . 9 7 Peak Build Rating 12 | 9 12 12 Average Rating 10 | 6 10 11 On Entrance 9 | 6 9 12 Naked Turns . | . . . Heaviest Build 52 | 13 52 52 Greatest Support 40 | 40 40 40 Greatest Overweight (x) 1 | . 1 1 Average Overweight (x) . | . . 1 Largest Inventory Capacity 20 | 8 20 20 Average Capacity 18 | 8 18 20 Most Carried 20 | 6 20 20 Average Carried 15 | 4 14 19 Final Capacity 20 | 8 20 20 Final Carried 19 | 3 19 18 Class Distribution -------------------- 58% | Mutant 41% | Scavenger-Mutant Dominant Class ---------------- Mutant | -10/Materials Scavenger-Mutant | -10/Mines Resources | -11 -10 -10 ----------- Run | Yrd Mat Min Matter Collected 729 | 267 238 224 Remotely . | . . . Salvage Created 860 | 115 424 321 Parts 54 | 9 24 21 Haulers Intercepted 2 | . 2 . Recyclers Shooed 1 | . . 1 Parts Field Recycled . | . . . Retrieved Matter . | . . . Parts Self-Destructed . | . . . Prevented . | . . . Kills | -11 -10 -10 ------- Run | Yrd Mat Min Combat Hostiles Destroyed 25 | . 9 16 Guns 18 | . 5 13 Cannons 7 | . 4 3 Classes Destroyed 9 | 2 5 2 Worker 1 | . . 1 Tunneler 2 | 2 . . Hauler 2 | . 2 . Recycler 1 | 1 . . Operator 1 | . 1 . Watcher 2 | . 2 . Swarmer 10 | . 2 8 Grunt 11 | . 7 4 Assembled 4 | . . 4 Best Kill Streak 6 | 2 6 6 Combat Bots Only 6 | . 4 6 Max Kills in Single Turn 2 | 2 1 1 Gunslinging . | . . . Exploded . | . . . Melee . | . . . Uniques/NPCs Destroyed . | . . . Combat | -11 -10 -10 -------- Run | Yrd Mat Min Hostile Shots Fired 163 | . 41 122 Missed 51 | . 17 34 Damage Taken 1466 | 24 275 1167 Core 252 | . 27 225 Absorbed by Shields . | . . . Regen/Repaired (Parts) 46 | . 46 . Core Remaining (%) 100 | 100 . . Volleys Fired 85 | 5 31 49 Largest 2 | 2 2 2 Hottest 100 | 60 100 100 Shots Fired 160 | 10 62 88 Gun 116 | 10 39 67 Cannon 44 | . 23 21 Launcher . | . . . Special . | . . . Kinetic 88 | 9 31 48 Thermal 71 | . 31 40 Explosive . | . . . Electromagnetic 1 | 1 . . Robot Hit Streak 10 | 4 10 7 Robot Miss Streak 3 | 1 3 3 Penetration Max . | . . . Secondary Targets 1 | . . 1 Max Gunslinging Chain 1 | . . 1 Shots Hit Robots 99 | 7 38 54 Core Hits 48 | 2 20 26 Critical Kills . | . . . Critical Parts Destroyed . | . . . Critical Strikes 4 | 1 1 2 Burn 2 | . . 2 Blast 1 | . 1 . Corrupt 1 | 1 . . Melee Attacks . | . . . Impact . | . . . Slashing . | . . . Piercing . | . . . Sneak Attacks . | . . . Combat Hostiles . | . . . Follow-up Attacks . | . . . Damage Inflicted 1571 | 157 576 838 Guns 1033 | 84 364 585 Cannons 465 | . 212 253 Explosions 73 | 73 . . Melee . | . . . Ramming . | . . . Kinetic 835 | 71 278 486 Thermal 723 | 73 298 352 Explosive . | . . . Electromagnetic 13 | 13 . . Impact . | . . . Slashing . | . . . Piercing . | . . . Highest Corruption 3 | . 3 3 Average Corruption 2 | . 2 3 Corruption Purged . | . . . Corruption Blocked . | . . . Effects 33 | . 18 15 Message Errors 6 | . 1 5 Matter Fused 9 | . 5 4 Heat Flow Errors 4 | . 3 1 Energy Discharges 4 | . 4 . Parts Fused 1 | . . 1 Data Loss (minor) 6 | . 4 2 Data Loss (major) 1 | . . 1 Alerts 2 | . 1 1 Overload Shots . | . . . Overflow Damage 20 | 18 . 2 Projectiles 2 | . . 2 Explosions 18 | 18 . . Melee . | . . . Knockbacks 3 | . 2 1 Impact . | . . . Kinetic 3 | . 2 1 Secondary . | . . . Self-Inflicted Damage 24 | 24 . . Shots 1 | 1 . . Rammed . | . . . Targets Rammed . | . . . Kicked . | . . . Crushed . | . . . Highest Temperature 249 | 12 249 114 Average Temperature 50 | 12 58 41 Received Heat Transfer 324 | . 117 207 Siege Activations . | . . . Robots Corrupted . | . . . Combat Hostiles . | . . . Parts Fried . | . . . Impact Corruptions . | . . . Robots Melted . | . . . Combat Hostiles . | . . . Parts Melted 3 | . . 3 Heat Transferred 1792 | 100 693 999 Parts Sabotaged . | . . . Parts Stolen . | . . . Parts Stripped . | . . . Power Chain Reactions 1 | 1 . . Alert | -11 -10 -10 ------- Run | Yrd Mat Min Peak Influence 165 | 15 163 165 Initial 25 | . 9 25 Average 72 | 10 70 82 Maximum Alert Level . | . . . Low Security (%) 100 | 100 100 100 Level 1 . | . . . Level 2 . | . . . Level 3 . | . . . Level 4 . | . . . Level 5 . | . . . High Security . | . . . Max Security . | . . . Squads Dispatched . | . . . Investigation . | . . . Extermination . | . . . Reinforcement . | . . . Assault . | . . . Garrison . | . . . Intercept . | . . . Searches Triggered . | . . . Construction Impeded . | . . . Haulers Reinforced . | . . . Active Scanning Responses . | . . . Cargo Convoy Interrupts . | . . . Stealth | -11 -10 -10 --------- Run | Yrd Mat Min Distress Signals 1 | . 1 . Communications Jammed . | . . . Distress Signals . | . . . Times Spotted 45 | . 21 24 Peak Tracking Total 7 | . 4 7 Tactical Retreats 2 | . 1 1 Traps | -11 -10 -10 ------- Run | Yrd Mat Min Traps Triggered 2 | . 2 . Indirectly . | . . . Trap Hack Attempts . | . . . Triggered . | . . . Disarmed . | . . . Reprogrammed . | . . . Reused . | . . . Traps Extracted . | . . . Installed . | . . . Triggered . | . . . Machines | -11 -10 -10 ---------- Run | Yrd Mat Min Machines Disabled . | . . . Max in Single Turn . | . . . Machines Repaired . | . . . Machines Dismantled . | . . . Machines Sabotaged . | . . . Overloaded Fab Kills . | . . . Hacking | -11 -10 -10 --------- Run | Yrd Mat Min Machines Accessed 10 | . 10 . Terminals 7 | . 7 . Fabricators . | . . . Repair Stations 1 | . 1 . Recycling Units 2 | . 2 . Scanalyzers . | . . . Garrison Access . | . . . Total Hacks 28 | . 28 . Successful 13 | . 13 . Failed 14 | . 14 . Catastrophic . | . . . Database Lockouts 1 | . 1 . Manual 11 | . 11 . Terminals 17 | . 17 . Fabricators . | . . . Repair Stations 5 | . 5 . Recycling Units 6 | . 6 . Scanalyzers . | . . . Garrison Access . | . . . Terminal Hacks 6 | . 6 . Robot Analysis 3 | . 3 . Prototype ID Bank 3 | . 3 . Fabricator Hacks . | . . . Repair Station Hacks 3 | . 3 . Scan Component 2 | . 2 . Repair 1 | . 1 . Recycling Unit Hacks 1 | . 1 . Retrieve Components 1 | . 1 . Scanalyzer . | . . . Garrison Access Hacks . | . . . Unauthorized Hacks 3 | . 3 . Terminals . | . . . Fabricators . | . . . Repair Stations . | . . . Recycling Units 3 | . 3 . Reject 1 | . 1 . Mask 2 | . 2 . Scanalyzers . | . . . Garrison Access . | . . . Data Cores Recovered . | . . . Used . | . . . Hacking Detections 7 | . 7 . Full Trace Events 1 | . 1 . Feedback Events 1 | . 1 . Corruption 1 | . 1 . Feedback Blocked . | . . . Robot Schematics Acquired . | . . . Robots Built . | . . . Authchips . | . . . Time . | . . . Total Robot Build Rating . | . . . Part Schematics Acquired . | . . . Parts Built . | . . . Authchips . | . . . Time . | . . . Total Part Build Rating . | . . . Parts Repaired 1 | . 1 . Time 32 | . 32 . Parts Recycled . | . . . Recycled Matter . | . . . Retrieved Matter . | . . . Retrieved Components 4 | . 4 . Parts Scanalyzed . | . . . Part Schematics Acquired . | . . . Parts Damaged . | . . . Bothacking | -11 -10 -10 ------------ Run | Yrd Mat Min Used RIF Installer . | . . . Robots Hacked . | . . . Non-combat . | . . . Combat . | . . . Robot Hacks Applied . | . . . Relay Couplers Released . | . . . Fabnet Peak Effective % . | . . . Robots Rewired . | . . . Allies Hacked . | . . . Hacks Repelled . | . . . Allies | -11 -10 -10 -------- Run | Yrd Mat Min Total Allies . | . . . Largest Group . | . . . Highest-Rated Group . | . . . Highest-Rated Ally . | . . . Total Orders . | . . . Ally Attacks . | . . . Total Damage . | . . . Kills . | . . . Allies Corrupted . | . . . Allies Melted . | . . . Intel | -11 -10 -10 ------- Run | Yrd Mat Min Robot Analysis Total 3 | . 3 . Derelict Logs Recovered . | . . . Drone Launches . | . . . Drone Recoveries . | . . . Exploration | -11 -10 -10 ------------- Run | Yrd Mat Min Turns Passed 2514 | 93 1589 832 Spaces Moved 947 | 46 623 278 Core . | . . . Treads 916 | 15 623 278 Legs 31 | 31 . . Wheels . | . . . Hover . | . . . Flight . | . . . Fastest Speed 120 | 120 160 240 Average Speed 225 | 133 225 240 Slowest Speed 240 | 160 240 240 Overloaded Moves . | . . . Propulsion Burnouts . | . . . Robots Hopped . | . . . Cave-ins Triggered . | . . . Exploration Rate (%) 56 | 4 97 68 Regions Visited 2 Branch Regions 1 Pre-discovered Areas . | . . . Known Exits Taken . | . . . Unknown Exits Taken 2 | 1 1 . Scrap Searched . | . . . Spaces Dug . | . . . Terrain Destroyed 2 | 2 . . Melee . | . . . Projectile . | . . . AOE 2 | 2 . . Terrain Rammed . | . . . Walls Destroyed . | . . . Machines Disabled . | . . . Actions | -11 -10 -10 --------- Run | Yrd Mat Min Total 1174 | 68 748 358 Wait 86 | 11 56 19 Move 945 | 45 622 278 Hop . | . . . Pick Up 21 | . 17 4 Fast Attach 2 | 1 1 . Attach 6 | 1 1 4 Detach . | . . . Swap 15 | 2 11 2 Drop 14 | 3 9 2 Fire 85 | 5 31 49 Melee . | . . . Ram . | . . . Kick . | . . . Crush . | . . . Escape Stasis . | . . . Rewire . | . . . Trap . | . . . Miscellaneous . | . . . Route ------- -11/Scrapyard -10/Materials (discovered 5 exits: [*Mat x3] / [*Min x2]) -10/Mines (discovered 2 exits: [*Mat x2]) History --------- Turn | Location | Event 1 | -11/Scrapyard | Discovered new exit (range 1) 94 | -11/Scrapyard | Entered Materials 94 | -10/Materials | Discovered new exit (range 15) 303 | -10/Materials | Build established: Mutant 368 | -10/Materials | Discovered new exit (range 7) 690 | -10/Materials | Discovered new exit (range 10) 1007 | -10/Materials | Central database locked down 1067 | -10/Materials | Discovered new exit (range 16) 1440 | -10/Materials | Repaired Particle Gun 1572 | -10/Materials | Discovered new exit (range 16) 1683 | -10/Materials | Entered Mines 1748 | -10/Mines | Build established: Scavenger-Mutant 1800 | -10/Mines | Discovered new exit (range 8) 1951 | -10/Mines | Discovered new exit (range 7) 2470 | -10/Mines | Assembled infested the area 2475 | -10/Mines | Assisted by a Guerilla fighting off Assembled 2484 | -10/Mines | Core integrity fell below 50% 2515 | -10/Mines | Core integrity fell below 20% 2515 | -10/Mines | Destroyed by as-63825 with Assembled Blade Last Messages --------------- 02469_ Acquired 49 matter. 02470_ ALERT: Infestation in the mines, dispatching Demolisher response squad. 02475_ A derelict emerges from the shadows: "You need to get out of here! I've been tracking a group of Assembled to figure out where they're coming from, and they're closing on this area, come on!" 02475_ U-05 Engineer lays Concrete. 02483_ System corrupted: Matter fused (-9). 02483_ Particle Gun destroyed. 02483_ as-14076 destroyed. 02486_ as-86963 destroyed. 02486_ Switching to secondary target: as-61484. 02495_ as-61484 destroyed. 02498_ Imp. Heat Sink destroyed. 02503_ Assault Rifle destroyed. 02504_ as-46149 destroyed. 02513_ Lgt. Treads destroyed. 02514_ Med. Laser destroyed. 02515_ Lgt. Treads destroyed. 02515_ Lgt. Ion Engine destroyed. Map ----- +----------------------------------------------------+ | | | | | | | | | | | | | | | | | | | | | | | | | | | ?????????????????????????????????????????????????? | | ?????????????????????????????????????????????????? | | ??????????????????????????????##?????????????????? | | ????????#####????????????????? ##????????????????? | | ???????## ##??????????????? ##???????????????? | | ???????# #??????????????? #???????????????? | | ???????# #?????????????? #???????????????? | | ??????## #?????????????? #???????????????? | | ??????# #????###?????? #### #?????????? | | ??????# ##????# ##???# a a #?????????? | | ?????## ##?????# #### a ??????????? | | ???### ####### ## a % #???????????????? | | ???# [ =@a #????????????????? | | ???# % ! #????????????????? | | ???# ### = #????????????????? | | ???## ## ##?# ## #???????????????? | | ????# ########??# ### #??????????????? | | ???## #?????????# #?##### #?????????????? | | ??## #?????????# #??????# #?????????????? | | ### #?????????# #??????? ##?????????????? | | #?????????# ???????? ##??????????????? | | ##?????????# ##?????????##???????????????? | | ## ##??????????# ????????????????????????????? | | ## ##???????????# ????????????????????????????? | | ##????????????# ????????????????????????????? | | #?????????????# ????????????????????????????? | | #### #?????????????? ????????????????????????????? | | ##?# #?????????????? ????????????????????????????? | | ### ######??????????????????????????????????????? | | ?????????????????????????????????????? | | #???????????????????????????????????????? | | ####???????????????????????????????????????????? | | ##??????????????????????????????????????????????? | | ##???????????????????????????????????????????????? | | ?????????????????????????????????????????????????? | | ?????????????????????????????????????????????????? | | ?????????????????????????????????????????????????? | +----------------------------------------------------+ Best States ------------- Heat Dissipation 39 Energy Generation 10 Energy Capacity 250 Matter Stores 300 Matter Capacity 300 Sight Range 16 Terrain Scan Range 16 Terrain Scan Density 10 Evasion (%) 55 Recoil Reduction 2 Item Schematics ----------------- None Robot Schematics ------------------ None Fabricated ------------ Nothing Alien Tech Used ----------------- None Achievements -------------- None Challenges ------------ None Game ------ Seed FrostSigixSuperbattery Manual? 0 Play Time 00:15:51 Cumulative 85.7 hours Start 2024.09.15 @ 21:33:54 End 2024.09.15 @ 21:46:27 Sessions 1 Manual Loads 0 Difficulty Rogue Special Mode None Game No. 121 Rogue 121 Adventurer 0 Explorer 0 Win Type - Total 1 Types 1/0/0/0/0/0/0/0/0 Lore% 19 Gallery% 55 Achievement% 44 Wizard Run 0 Options --------- Layout 0 ASCII 0 Keyboard 0 Movement Mouse Keybinds 1 Fullscreen 1 Font 18/TerminusBold Map View 76x50 Zoom Use 0% Tactical HUD 1 Map Filters NONE Filters NONE Steam 1 RUN: 00dc8481-88fd-43ee-a267-1585ead54194